Cogmind - Beta 10.2 @@@ ROGUE MODE // 2021.02.11 @ 23:23:11 Player: Intraloper Result: Destroyed by P-80 Master with Gamma Rifle Performance ------------- Evolutions (7) 3500 Regions Visited (11) 2200 Robots Destroyed (71) 355 Value Destroyed (2878) 2878 Prototype IDs (4) 80 Alien Tech Used (0) 0 Bonus (736) 736 TOTAL SCORE: 9749 Bonus ------- Follower Combat Kills 136 Met Imprinter 300 Was Imprinted 300 Cogmind --------- Core Integrity 0/1300 Matter 50/300 Energy 87/100 System Corruption 4% Temperature Cool (0) Movement Hovering (70) Location -3/Research Parts ------- > --- POWER (1) -------- (None) > --- PROPULSION (6) --- Improved Gyrokinetic Inverter > --- UTILITY (7) ------ (None) > --- WEAPON (7) ------- (None) > --- INVENTORY (4) ---- Tesla Rifle Disruptor Cannon Coil Gun Hypervelocity Gauss Rifle Peak State ------------ > --- POWER ------------ Micro Fission Core > --- PROPULSION ------- Light Treads Medium Treads Heavy Siege Treads Heavy Siege Treads > --- UTILITY ---------- Improved Heat Sink Large Storage Unit Large Storage Unit High-capacity Storage Unit Improved Energy Well Heavy Armor Plating > --- WEAPON ----------- Tesla Rifle Disruptor Cannon Disruptor Cannon Disruptor Cannon Coil Gun Heavy Flak Cannon Heavy Flak Cannon > --- INVENTORY -------- Light Angular Momentum Engine Light Fission Core Light Treads Light Treads Biometal Leg Large Storage Unit Compact Battery Relay Coupler [Programmer] System Backup Module Hacking Drone Bay Tesla Rifle Wave Gun Disruptor Cannon Disruptor Cannon Coil Gun Coil Gun Coil Gun Coil Gun Hypervelocity Gauss Rifle Slug Cannon Heavy Flak Cannon Mini Grenade Launcher Mini Grenade Launcher [Rating: 107] Favorites ----------- Power Heavy Ion Engine Engine Heavy Ion Engine Power Core Micro Fission Core Propulsion Light Treads Treads Light Treads Leg Biometal Leg Hover Unit Improved Gyrokinetic Inverter Utility Large Storage Unit Device Hacking Drone Bay Storage Large Storage Unit Processor Improved Signal Interpreter Protection Heavy Armor Plating Weapon Heavy Assault Rifle Energy Gun Heavy Riot Gun Energy Cannon Disruptor Cannon Ballistic Gun Heavy Assault Rifle Ballistic Cannon Heavy Flak Cannon Launcher Long-range Missile Launcher Special Melee Weapon Datajack Build | -11 -10 -9 -9 -7 -6 -6 -5 -5 -5 -4 -3 ------- Run | Scr Mat Mat Min Zio Pro Fac Fac Upp Upp Fac Res Slots Evolved 14 | . . 2 . . . 6 2 . . 2 2 Power . | . . . . . . . . . . . . Propulsion 4 | . . 1 . . . 3 . . . . . Utility 5 | . . 1 . . . 1 . . . 1 2 Weapon 5 | . . . . . . 2 2 . . 1 . Parts Attached 87 | 6 11 12 . 4 8 10 4 11 6 8 7 Power 7 | 1 . 2 . . 1 1 1 . . . 1 Engine 5 | 1 . 2 . . 1 . . . . . 1 Core 2 | . . . . . . 1 1 . . . . Reactor . | . . . . . . . . . . . . Propulsion 34 | 2 1 5 . 1 4 5 . 6 3 3 4 Treads 32 | 2 1 5 . 1 4 5 . 6 3 3 2 Leg 1 | . . . . . . . . . . . 1 Wheel . | . . . . . . . . . . . . Hover 1 | . . . . . . . . . . . 1 Flight . | . . . . . . . . . . . . Utility 12 | 1 4 1 . 1 1 1 . 1 . 1 1 Device 2 | . . . . 1 . . . 1 . . . Storage 8 | 1 4 . . . 1 1 . . . 1 . Processor 1 | . . 1 . . . . . . . . . Hackware . | . . . . . . . . . . . . Protection 1 | . . . . . . . . . . . 1 Artifact . | . . . . . . . . . . . . Weapon 34 | 2 6 4 . 2 2 3 3 4 3 4 1 Energy Gun 7 | . 1 . . 1 . 2 . 1 . 1 1 Energy Cannon 6 | . . 1 . . 1 . 1 . . 3 . Ballistic Gun 14 | 2 2 3 . 1 1 1 2 2 . . . Ballistic Cannon 2 | . . . . . . . . . 2 . . Launcher 2 | . . . . . . . . 1 1 . . Special Weapon . | . . . . . . . . . . . . Impact Weapon . | . . . . . . . . . . . . Slashing Weapon . | . . . . . . . . . . . . Piercing Weapon . | . . . . . . . . . . . . Special Melee Weapon 3 | . 3 . . . . . . . . . . Unidentified Prototypes 4 | . . 1 . 1 1 . 1 . . . . Parts Lost 37 | . 2 1 . . 5 1 . 4 5 1 18 Power 2 | . . . . . 1 . . . . . 1 Propulsion 14 | . . 1 . . 2 . . 2 3 . 6 Utility 3 | . . . . . . . . . . . 3 Weapon 18 | . 2 . . . 2 1 . 2 2 1 8 Highest Loss Streak 18 | . 2 1 . . 5 1 . 2 5 1 18 Average Slot Usage (%) 96 | . 92 99 100 97 99 100 98 98 94 91 75 Engine 8 | . 14 11 11 11 10 2 . . . . . Core 1 | . . . . . . 3 5 5 5 5 3 Treads 32 | . 28 32 33 33 32 40 35 34 29 23 16 Device 4 | . . . . 5 10 . . 4 5 5 3 Storage 21 | . 21 22 22 22 22 26 23 17 17 21 17 Processor 2 | . . 10 11 2 . . . . . . . Energy Gun 5 | . . . . 7 9 8 11 4 . 1 3 Energy Cannon 1 | . . . . . 1 4 . . . 6 12 Ballistic Gun 16 | . 22 20 22 14 11 13 21 24 23 17 3 Naked Turns 16 | . . . . . . . . . . . 16 Heaviest Build 146 | 13 56 62 62 65 70 92 97 101 104 127 146 Greatest Support 188 | 40 40 60 60 60 68 136 136 144 144 188 188 Greatest Overweight (x) 3 | . 1 1 1 1 3 . . 1 1 . 3 Average Overweight (x) . | . . . 1 1 1 . . . . . . Largest Inventory Capacity 24 | 6 18 18 18 18 18 24 24 24 24 24 24 Average Capacity 19 | 5 10 18 18 18 18 23 24 24 24 24 21 Most Carried 24 | 2 10 18 18 18 18 21 24 24 24 24 23 Average Carried 17 | . 6 13 17 17 17 13 22 22 21 21 20 Final Capacity 24 | 6 18 18 18 18 18 24 24 24 24 24 4 Final Carried 24 | 2 9 17 17 18 17 21 24 24 21 24 4 Class Distribution -------------------- 50% | Mutant 23% | Scavenger-Mutant 20% | Scavenger-Executioner 5% | Scavenger-Gunner Dominant Class ---------------- Mutant | -10/Materials Mutant | -9/Materials Scavenger-Mutant | -9/Mines Mutant | -7/Zion Mutant | -6/Proximity Caves Scavenger-Gunner | -6/Factory Scavenger-Executioner | -5/Factory Scavenger-Executioner | -5/Upper Caves Scavenger-Executioner | -5/Upper Caves Scavenger-Executioner | -4/Factory Scavenger-Executioner | -3/Research Resources | -11 -10 -9 -9 -7 -6 -6 -5 -5 -5 -4 -3 ----------- Run | Scr Mat Mat Min Zio Pro Fac Fac Upp Upp Fac Res Matter Collected 2279 | 220 284 265 60 86 89 157 106 683 127 161 41 Remotely . | . . . . . . . . . . . . Salvage Created 2924 | . 428 668 46 . 110 313 118 763 248 161 69 Parts 147 | . 30 51 3 . 2 8 6 28 8 7 4 Haulers Intercepted 3 | . 1 . . . . 2 . . . . . Recyclers Shooed . | . . . . . . . . . . . . Parts Field Recycled . | . . . . . . . . . . . . Retrieved Matter . | . . . . . . . . . . . . Parts Self-Destructed 39 | . . . . 2 8 . . 23 6 . . Prevented 3 | . . . . . 3 . . . . . . Kills | -11 -10 -9 -9 -7 -6 -6 -5 -5 -5 -4 -3 ------- Run | Scr Mat Mat Min Zio Pro Fac Fac Upp Upp Fac Res Combat Hostiles Destroyed 64 | . 9 17 3 . 2 1 2 21 7 2 . Melee 1 | . . . . . . . . . . 1 . Guns 47 | . 9 16 3 . 1 1 2 12 3 . . Cannons 3 | . . 1 . . 1 . . . . 1 . AOE 13 | . . . . . . . . 9 4 . . Classes Destroyed 10 | . 2 2 . . 1 1 1 2 . . 1 Worker 1 | . . . . . . . . . . . 1 Hauler 3 | . 1 . . . . 2 . . . . . Watcher 3 | . . . . . . 1 . . . 1 1 Swarmer 15 | . . 3 3 . . . . 7 2 . . Grunt 32 | . 9 10 . . . 1 . 8 4 . . Brawler 2 | . . . . . . . . 2 . . . Duelist 1 | . . . . . . . . 1 . . . Sentry 8 | . . 4 . . . . . 3 1 . . Hunter 2 | . . . . . 2 . . . . . . Programmer 4 | . . . . . . . 2 . . 2 . Best Kill Streak 7 | . 3 6 3 . 2 2 2 6 7 1 1 Combat Bots Only 7 | . 3 6 3 . 2 1 2 6 7 1 . Max Kills in Single Turn 5 | . 1 2 1 . 1 1 1 5 3 1 1 Gunslinging 1 | . . 1 . . . . . 1 . . . Exploded 4 | . . . . . . . . 4 2 . . Melee 1 | . . . . . . . . . . 1 . Uniques/NPCs Destroyed . | . . . . . . . . . . . . Combat | -11 -10 -9 -9 -7 -6 -6 -5 -5 -5 -4 -3 -------- Run | Scr Mat Mat Min Zio Pro Fac Fac Upp Upp Fac Res Damage Taken 8229 | . 482 464 238 . 1008 37 124 1296 769 734 3077 Core 1778 | . 44 77 56 . 156 . 19 41 76 . 1309 Absorbed by Shields . | . . . . . . . . . . . . Core Remaining (%) 82 | 100 82 . . . 27 100 . . 86 100 . Volleys Fired 143 | . 27 27 10 2 12 10 3 23 8 15 6 Largest 7 | . 2 2 2 2 2 4 6 6 6 7 7 Hottest 444 | . 70 80 46 93 113 186 216 236 236 300 444 Shots Fired 465 | . 52 54 20 4 24 39 18 122 47 47 38 Gun 368 | . 52 50 20 4 17 31 18 108 36 20 12 Cannon 78 | . . 4 . . 7 8 . . 6 27 26 Launcher 19 | . . . . . . . . 14 5 . . Special . | . . . . . . . . . . . . Kinetic 349 | . 48 50 20 2 12 20 12 99 38 32 16 Thermal 54 | . 4 4 . . 7 19 6 9 4 . 1 Explosive 19 | . . . . . . . . 14 5 . . Electromagnetic 43 | . . . . 2 5 . . . . 15 21 Robot Hit Streak 27 | . 7 13 7 . 9 27 16 25 18 8 4 Robot Miss Streak 8 | . 1 2 2 . 2 1 1 4 2 7 8 Penetration Max 1 | . . . . . . 1 . . . . 1 Secondary Targets 8 | . 1 4 2 . . . . 1 . . . Max Gunslinging Chain 1 | . 1 1 1 . . . . 1 . . . Shots Hit Robots 329 | . 41 43 14 . 18 33 16 78 31 31 24 Core Hits 159 | . 21 27 3 . 6 10 4 49 22 9 8 Critical Hits 9 | . . 1 . . . 2 1 3 2 . . Critical Kills 7 | . . 1 . . . 1 1 2 2 . . Critical Parts Destroyed 2 | . . . . . . 1 . 1 . . . Melee Attacks 4 | . 4 . . . . . . . . . . Impact . | . . . . . . . . . . . . Slashing . | . . . . . . . . . . . . Piercing . | . . . . . . . . . . . . Sneak Attacks 3 | . 3 . . . . . . . . . . Combat Hostiles . | . . . . . . . . . . . . Follow-up Attacks . | . . . . . . . . . . . . Damage Inflicted 7277 | . 448 637 236 . 474 532 351 2734 1058 405 402 Guns 4159 | . 448 619 236 . 150 357 351 1238 456 158 146 Cannons 986 | . . 18 . . 179 175 . . 124 235 255 Explosions 2119 | . . . . . 145 . . 1496 478 . . Melee . | . . . . . . . . . . . . Ramming 13 | . . . . . . . . . . 12 1 Kinetic 3808 | . 423 619 236 . 73 169 245 1095 487 324 137 Thermal 1072 | . 25 18 . . 324 363 106 143 93 . . Explosive 1974 | . . . . . . . . 1496 478 . . Electromagnetic 410 | . . . . . 77 . . . . 69 264 Impact . | . . . . . . . . . . . . Slashing . | . . . . . . . . . . . . Piercing . | . . . . . . . . . . . . Highest Corruption 6 | . . . . . . . . . . 6 3 Average Corruption 4 | . . . . . . . . . . 5 1 Corruption Purged . | . . . . . . . . . . . . Effects 4 | . . . . . . . . . . 4 . Message Errors 1 | . . . . . . . . . . 1 . Matter Fused 1 | . . . . . . . . . . 1 . Energy Discharges 1 | . . . . . . . . . . 1 . Targeting Errors 1 | . . . . . . . . . . 1 . Overload Shots . | . . . . . . . . . . . . Overflow Damage 37 | . . . . . . 9 . 24 4 . . Projectiles 9 | . . . . . . 9 . . . . . Explosions 28 | . . . . . . . . 24 4 . . Melee . | . . . . . . . . . . . . Knockbacks 2 | . . . . . . . . . . 2 . Impact . | . . . . . . . . . . . . Kinetic 2 | . . . . . . . . . . 2 . Secondary . | . . . . . . . . . . . . Self-Inflicted Damage 401 | . . . . . . . . 169 119 113 . Shots 10 | . . . . . . . . 5 4 1 . Rammed 1 | . . . . . . . . . . . 1 Targets Rammed 2 | . . . . . . . . . . 1 1 Kicked . | . . . . . . . . . . . . Crushed 1 | . . . . . . . . . . 1 . Highest Temperature 957 | . 54 60 . 54 334 238 362 439 213 406 957 Average Temperature 179 | . 16 20 . 29 167 82 151 101 136 183 453 Received Heat Transfer 1590 | . 267 195 . . . 18 . 408 162 . 540 Effects 33 | . . . . . . . . . . 3 30 Shutdowns 4 | . . . . . . . . . . . 4 Energy Bleed 3 | . . . . . . . . . . . 3 Interference 8 | . . . . . . . . . . 3 5 Matter Decay 2 | . . . . . . . . . . . 2 Short Circuit 2 | . . . . . . . . . . . 2 Damage (minor) 5 | . . . . . . . . . . . 5 Damage (major) 6 | . . . . . . . . . . . 6 Damage (core) 3 | . . . . . . . . . . . 3 Siege Activations . | . . . . . . . . . . . . Robots Corrupted 1 | . . . . . . . . . . . 1 Combat Hostiles . | . . . . . . . . . . . . Parts Fried 2 | . . . . . . . . . . . 2 Impact Corruptions . | . . . . . . . . . . . . Robots Melted . | . . . . . . . . . . . . Combat Hostiles . | . . . . . . . . . . . . Parts Melted 3 | . . . . . 1 1 1 . . . . Heat Transferred 1910 | . 74 37 . . 450 757 185 259 148 . . Parts Sabotaged . | . . . . . . . . . . . . Parts Stolen . | . . . . . . . . . . . . Parts Stripped . | . . . . . . . . . . . . Power Chain Reactions 1 | . . . . . 1 . . . . . . Missiles Intercepted . | . . . . . . . . . . . . Alert | -11 -10 -9 -9 -7 -6 -6 -5 -5 -5 -4 -3 ------- Run | Scr Mat Mat Min Zio Pro Fac Fac Upp Upp Fac Res Peak Influence 371 | . 229 371 214 . . 94 57 . . 248 137 Initial 144 | . . 96 144 . . 18 7 . . 119 45 Average 125 | . 94 250 108 . . 47 16 . . 155 62 Maximum Alert Level 1 | . 1 1 1 . . . . . . 1 . Low Security (%) 64 | 100 85 31 54 . . 100 100 . . 43 100 Level 1 35 | . 14 68 45 . . . . . . 56 . Level 2 . | . . . . . . . . . . . . Level 3 . | . . . . . . . . . . . . Level 4 . | . . . . . . . . . . . . Level 5 . | . . . . . . . . . . . . High Security . | . . . . . . . . . . . . Max Security . | . . . . . . . . . . . . Squads Dispatched 9 | . 2 . . . . . . . . 3 4 Investigation 4 | . 1 . . . . . . . . 1 2 Extermination 2 | . . . . . . . . . . 1 1 Reinforcement 3 | . 1 . . . . . . . . 1 1 Assault . | . . . . . . . . . . . . Garrison . | . . . . . . . . . . . . Intercept . | . . . . . . . . . . . . Construction Impeded . | . . . . . . . . . . . . Haulers Reinforced 1 | . . . . . . . . . . . 1 Stealth | -11 -10 -9 -9 -7 -6 -6 -5 -5 -5 -4 -3 --------- Run | Scr Mat Mat Min Zio Pro Fac Fac Upp Upp Fac Res Distress Signals 7 | . 1 6 . . . . . . . . . Communications Jammed . | . . . . . . . . . . . . Distress Signals . | . . . . . . . . . . . . Times Spotted 104 | . 11 27 3 . 6 5 2 21 7 5 17 Peak Tracking Total 14 | . 5 7 3 . 4 2 2 5 7 2 14 Tactical Retreats 7 | . . . . . 1 . . 2 . . 4 Traps | -11 -10 -9 -9 -7 -6 -6 -5 -5 -5 -4 -3 ------- Run | Scr Mat Mat Min Zio Pro Fac Fac Upp Upp Fac Res Traps Triggered 2 | . 1 . . . . . . . . 1 . Indirectly . | . . . . . . . . . . . . Trap Hack Attempts . | . . . . . . . . . . . . Triggered . | . . . . . . . . . . . . Disarmed . | . . . . . . . . . . . . Reprogrammed . | . . . . . . . . . . . . Reused . | . . . . . . . . . . . . Traps Extracted . | . . . . . . . . . . . . Installed . | . . . . . . . . . . . . Triggered . | . . . . . . . . . . . . Machines | -11 -10 -9 -9 -7 -6 -6 -5 -5 -5 -4 -3 ---------- Run | Scr Mat Mat Min Zio Pro Fac Fac Upp Upp Fac Res Machines Disabled 10 | . . 1 . . . . . 1 5 3 . Max in Single Turn 3 | . . 1 . . . . . 1 3 2 . Machines Sabotaged . | . . . . . . . . . . . . Garrisons Compromised . | . . . . . . . . . . . . Overloaded Fab Kills . | . . . . . . . . . . . . Fab Network Shutdowns . | . . . . . . . . . . . . Hacking | -11 -10 -9 -9 -7 -6 -6 -5 -5 -5 -4 -3 --------- Run | Scr Mat Mat Min Zio Pro Fac Fac Upp Upp Fac Res Machines Accessed 5 | . 1 1 1 . 1 . . . . 1 . Terminals 3 | . 1 1 . . 1 . . . . . . Fabricators . | . . . . . . . . . . . . Repair Stations 1 | . . . . . . . . . . 1 . Recycling Units . | . . . . . . . . . . . . Scanalyzers . | . . . . . . . . . . . . Garrison Access . | . . . . . . . . . . . . Total Hacks 8 | . 1 2 1 . 1 . . . . 3 . Successful 6 | . 1 . 1 . 1 . . . . 3 . Failed 2 | . . 2 . . . . . . . . . Catastrophic . | . . . . . . . . . . . . Database Lockouts . | . . . . . . . . . . . . Manual 5 | . . . . 4 1 . . . . . . Terminals 4 | . 1 2 . . 1 . . . . . . Fabricators . | . . . . . . . . . . . . Repair Stations 3 | . . . . . . . . . . 3 . Recycling Units . | . . . . . . . . . . . . Scanalyzers . | . . . . . . . . . . . . Garrison Access . | . . . . . . . . . . . . Terminal Hacks 3 | . 1 . 1 . 1 . . . . . . Record 1 | . . . . . 1 . . . . . . Open Door 1 | . . . 1 . . . . . . . . Branch Access Points 1 | . 1 . . . . . . . . . . Fabricator Hacks . | . . . . . . . . . . . . Repair Station Hacks 3 | . . . . . . . . . . 3 . Scan Component 2 | . . . . . . . . . . 2 . Repair 1 | . . . . . . . . . . 1 . Recycling Unit Hacks . | . . . . . . . . . . . . Scanalyzer . | . . . . . . . . . . . . Garrison Access Hacks . | . . . . . . . . . . . . Unauthorized Hacks . | . . . . . . . . . . . . Terminals . | . . . . . . . . . . . . Fabricators . | . . . . . . . . . . . . Repair Stations . | . . . . . . . . . . . . Recycling Units . | . . . . . . . . . . . . Scanalyzers . | . . . . . . . . . . . . Garrison Access . | . . . . . . . . . . . . Data Cores Recovered . | . . . . . . . . . . . . Used . | . . . . . . . . . . . . Hacking Detections 2 | . . 1 . . . . . . . 1 . Full Trace Events 1 | . . . . . . . . . . 1 . Feedback Events . | . . . . . . . . . . . . Feedback Blocked . | . . . . . . . . . . . . Robot Schematics Acquired . | . . . . . . . . . . . . Robots Built . | . . . . . . . . . . . . Matter . | . . . . . . . . . . . . Time . | . . . . . . . . . . . . Total Robot Build Rating . | . . . . . . . . . . . . Part Schematics Acquired . | . . . . . . . . . . . . Parts Built . | . . . . . . . . . . . . Matter . | . . . . . . . . . . . . Time . | . . . . . . . . . . . . Total Part Build Rating . | . . . . . . . . . . . . Parts Repaired 1 | . . . . . . . . . . 1 . Time 44 | . . . . . . . . . . 44 . Parts Recycled . | . . . . . . . . . . . . Recycled Matter . | . . . . . . . . . . . . Retrieved Matter . | . . . . . . . . . . . . Retrieved Components . | . . . . . . . . . . . . Parts Scanalyzed . | . . . . . . . . . . . . Part Schematics Acquired . | . . . . . . . . . . . . Parts Damaged . | . . . . . . . . . . . . Bothacking | -11 -10 -9 -9 -7 -6 -6 -5 -5 -5 -4 -3 ------------ Run | Scr Mat Mat Min Zio Pro Fac Fac Upp Upp Fac Res Used RIF Installer . | . . . . . . . . . . . . Robots Hacked 3 | . 3 . . . . . . . . . . Non-combat 2 | . 2 . . . . . . . . . . Combat 1 | . 1 . . . . . . . . . . Robot Hacks Applied 4 | . 4 . . . . . . . . . . parse_system 3 | . 3 . . . . . . . . . . no_distress 1 | . 1 . . . . . . . . . . Relay Couplers Released . | . . . . . . . . . . . . Robots Rewired . | . . . . . . . . . . . . Allies Hacked . | . . . . . . . . . . . . Hacks Repelled . | . . . . . . . . . . . . Allies | -11 -10 -9 -9 -7 -6 -6 -5 -5 -5 -4 -3 -------- Run | Scr Mat Mat Min Zio Pro Fac Fac Upp Upp Fac Res Total Allies 6 | . . . . 4 2 . . . . . . Largest Group 4 | . . . . 4 4 . . . . . . Highest-Rated Group 264 | . . . . 150 264 . . . . . . Highest-Rated Ally 94 | . . . . 41 94 . . . . . . Total Orders . | . . . . . . . . . . . . Ally Attacks 24 | . . . . . 24 . . . . . . Total Damage 857 | . . . . . 857 . . . . . . Kills 6 | . . . . . 6 . . . . . . Allies Corrupted . | . . . . . . . . . . . . Allies Melted . | . . . . . . . . . . . . Intel | -11 -10 -9 -9 -7 -6 -6 -5 -5 -5 -4 -3 ------- Run | Scr Mat Mat Min Zio Pro Fac Fac Upp Upp Fac Res Robot Analysis Total . | . . . . . . . . . . . . Derelict Logs Recovered 5 | . . . 1 1 2 . . 1 . . . Drone Launches . | . . . . . . . . . . . . Drone Recoveries . | . . . . . . . . . . . . Exploration | -11 -10 -9 -9 -7 -6 -6 -5 -5 -5 -4 -3 ------------- Run | Scr Mat Mat Min Zio Pro Fac Fac Upp Upp Fac Res Turns Passed 9864 | 77 385 763 825 4091 1081 504 202 900 162 597 277 Spaces Moved 5121 | 44 158 332 418 2249 544 247 109 490 74 291 165 Core 32 | 3 . . . . . . . . . . 29 Treads 5074 | 41 158 332 418 2249 544 247 109 490 74 291 121 Legs 5 | . . . . . . . . . . . 5 Wheels . | . . . . . . . . . . . . Hover 10 | . . . . . . . . . . . 10 Flight . | . . . . . . . . . . . . Fastest Speed 50 | 50 160 160 180 180 180 163 163 160 160 160 50 Average Speed 173 | 152 164 176 180 180 180 163 163 161 163 166 142 Slowest Speed 220 | 160 180 180 180 180 220 163 163 180 180 170 220 Overloaded Moves . | . . . . . . . . . . . . Propulsion Burnouts . | . . . . . . . . . . . . Robots Hopped . | . . . . . . . . . . . . Cave-ins Triggered . | . . . . . . . . . . . . Exploration Rate (%) 33 | 3 27 30 80 93 64 7 2 64 16 9 7 Regions Visited 11 Branch Regions 5 Pre-discovered Areas 4 | . . . . 3 1 . . . . . . Known Exits Taken 2 | . . 1 1 . . . . . . . . Unknown Exits Taken 9 | 1 1 . . 1 1 1 1 1 1 1 . Scrap Searched 11 | . . . 2 4 3 . . 1 1 . . Spaces Dug . | . . . . . . . . . . . . Terrain Destroyed 232 | . . . . . 5 . 2 180 23 22 . Melee . | . . . . . . . . . . . . Projectile 16 | . . . . . . . 2 12 2 . . AOE 216 | . . . . . 5 . . 168 21 22 . Terrain Rammed . | . . . . . . . . . . . . Walls Destroyed . | . . . . . . . . . . . . Machines Disabled . | . . . . . . . . . . . . Actions | -11 -10 -9 -9 -7 -6 -6 -5 -5 -5 -4 -3 --------- Run | Scr Mat Mat Min Zio Pro Fac Fac Upp Upp Fac Res Total 5738 | 51 224 451 472 2291 617 322 125 527 90 377 191 Wait 299 | . 18 73 41 13 49 47 . 1 1 49 7 Move 5110 | 43 157 331 417 2248 543 246 108 489 73 290 165 Hop . | . . . . . . . . . . . . Pick Up 60 | 2 7 6 2 12 3 9 6 3 2 7 1 Fast Attach 17 | 6 . 1 . 1 2 . 2 . . 4 1 Attach 35 | . 3 2 . 3 3 7 1 4 5 2 5 Detach 1 | . . . . . . . . . . 1 . Swap 39 | . 8 9 . 4 3 3 1 7 1 2 1 Drop 28 | . . 2 2 8 2 . 4 . . 6 4 Fire 143 | . 27 27 10 2 12 10 3 23 8 15 6 Melee 4 | . 4 . . . . . . . . . . Ram 1 | . . . . . . . . . . . 1 Kick . | . . . . . . . . . . . . Crush 1 | . . . . . . . . . . 1 . Escape Stasis . | . . . . . . . . . . . . Rewire . | . . . . . . . . . . . . Trap . | . . . . . . . . . . . . Miscellaneous . | . . . . . . . . . . . . Route ------- -11/Scrapyard -10/Materials (discovered 3 exits: *Mat / Min x2) -9/Materials -9/Mines (discovered 2 exits: *Exi / *Zio) -7/Zion -6/Proximity Caves -6/Factory -5/Factory -5/Upper Caves -5/Upper Caves -4/Factory -3/Research History --------- Turn | Location | Event 31 | -11/Scrapyard | Discovered new exit (range 15) 78 | -11/Scrapyard | Entered Materials 167 | -10/Materials | Identified exit to Mines 328 | -10/Materials | Build established: Mutant 395 | -10/Materials | Discovered new exit (range 10) 463 | -10/Materials | Entered another Materials area 463 | -9/Materials | Evolved 2 slots: Propulsion x1, Utility x1 1083 | -9/Materials | Discovered new exit (range 16) 1152 | -9/Materials | Identified exit to Mines 1226 | -9/Materials | Entered Mines 1240 | -9/Mines | Met a Derelict bent on vengeance 1285 | -9/Mines | Identified exit to Exiles 1449 | -9/Mines | Build established: Scavenger-Mutant 1595 | -9/Mines | Found a hidden stash of uninstalled traps 1657 | -9/Mines | Found the Drone Emporium 1844 | -9/Mines | Deemed a non-threat by the Exiles lab entrance 2030 | -9/Mines | A Derelict revealed a hidden shortcut to a safe place 2038 | -9/Mines | Identified exit to Zion 2051 | -9/Mines | Entered Zion 2531 | -7/Zion | Imprinted 2533 | -7/Zion | Declared Zion's savior 3005 | -7/Zion | Found Relay Coupler [Programmer] 3008 | -7/Zion | Found Relay Coupler [Programmer] 3013 | -7/Zion | Found Relay Coupler [Programmer] 3020 | -7/Zion | Found Relay Coupler [Programmer] 3023 | -7/Zion | Found Relay Coupler [Programmer] 3277 | -7/Zion | Learned 4 Factory zone layouts 3628 | -7/Zion | Build established: Mutant 3904 | -7/Zion | Given the Hacking Drone Bay 3929 | -7/Zion | Found Prototype Device 3929 | -7/Zion | Identified Hacking Drone Bay 4091 | -7/Zion | Learned location of Quarantine (-3) 4323 | -7/Zion | Learned location of Data Miner (-6) 5974 | -7/Zion | Discovered new exit (range 13) 6043 | -7/Zion | Given A8's code to call for help 6142 | -7/Zion | Entered Proximity Caves 6142 | -6/Proximity Caves | Accompanied by 4 allies 6573 | -6/Proximity Caves | Spotted B-75 Beast 6638 | -6/Proximity Caves | Enhanced Grunt warped into view, answering call for help 6639 | -6/Proximity Caves | Enhanced Grunt warped into view, answering call for help 7090 | -6/Proximity Caves | Core integrity fell below 50% 7126 | -6/Proximity Caves | Lost 5 parts (1p2n2w) 7196 | -6/Proximity Caves | Discovered new exit (range 10) 7223 | -6/Proximity Caves | Entered Factory 7223 | -6/Factory | Evolved 6 slots: Propulsion x3, Utility x1, Weapon x2 7512 | -6/Factory | Build established: Scavenger-Gunner 7661 | -6/Factory | Discovered new exit (range 13) 7727 | -6/Factory | Entered another Factory area 7727 | -5/Factory | Evolved 2 slots: Weapon x2 7865 | -5/Factory | Discovered new exit (range 5) 7929 | -5/Factory | Entered Upper Caves 8076 | -5/Upper Caves | Build established: Scavenger-Executioner 8116 | -5/Upper Caves | Attracted the attention of an 0b10 outpost 8403 | -5/Upper Caves | Attracted the attention of an 0b10 checkpoint 8447 | -5/Upper Caves | Learned Factory security intel 8810 | -5/Upper Caves | Discovered new exit (range 7) 8829 | -5/Upper Caves | Entered another Upper Caves area 8841 | -5/Upper Caves | Attracted the attention of an 0b10 base 8895 | -5/Upper Caves | Lost 5 parts (3n2w) 8896 | -5/Upper Caves | Destroyed 7 combat bots 8981 | -5/Upper Caves | Discovered new exit (range 6) 8991 | -5/Upper Caves | Entered Factory 8991 | -4/Factory | Evolved 2 slots: Utility x1, Weapon x1 9200 | -4/Factory | Repaired Med. Treads 9562 | -4/Factory | Discovered new exit (range 16) 9588 | -4/Factory | Entered Research 9588 | -3/Research | Evolved 2 slots: Utility x2 9835 | -3/Research | Core integrity fell below 50% 9852 | -3/Research | Core integrity fell below 20% 9865 | -3/Research | Destroyed by P-80 Master with Gamma Rifle Last Messages --------------- 09838_ ALERT: Rogue bot located, Programmers report to Research Zone 6D. 09838_ K-01 Serf cleans the Repair Station. 09839_ P-80 Master resets G-67 Veteran, system corruption cleaned. 09840_ Penetrated by Slug. 09840_ Imp. Energy Well destroyed. 09840_ Penetrated by Slug. 09840_ K-01 Serf cleans the Repair Station. 09840_ Biometal Leg destroyed. 09851_ Penetrated by Slug. 09851_ Slug penetrates Wall. 09853_ Detecting system override signal. 09856_ K-01 Serf cleans the Catalytron. 09856_ Acquired Imp. Gyrokinetic Inverter. 09856_ Slug penetrates Door. 09856_ Penetrated by Slug. 09863_ Slug penetrates K-01 Serf. 09863_ Slug penetrates Wall. 09863_ ALERT: Suspicious activity at Terminal R004. Dispatching Investigation squad. 09863_ Slammed into P-80 Master. Map ----- +----------------------------------------------------+ | ?????????????????????????????????????????????????? | | ?????????????????????????????????????????????????? | | ?????????????????????????????????????????????????? | | ?????????????????????????????????????????????????? | | ?????????????????????????????????????????????????? | | ?????????????????????????????????????????????????? | | ?????????????????????????????????????????????????? | | ?????????????????????????????????????????????????? | | ?????????????????????????????????????????????????? | | ????????????????????? ???????????????????????? | | ???????????????????? #??????????????????????? | | ??????????????????# A#??????????????????????? | | ??????????????????# #??????????????????????? | | ??????????????????# #??????????????????????? | | ??????????????????# ######## ??????????????? | | ??????????????????? ??????????????? | | ??????????????????? ???????????????? | | ???????????????????? ?????????????????? | | ????????????????????? ??????????????????? | | ????????????????????? h ???????????????????? | | ?????????????????????? ????????????????????? | | ??????????????????????# k ?????????????????????? | | ??????????????????????# h#??????????????????????? | | ??????????????????????# #??????????????????????? | | ??????????????????????#k #??????????????????????? | | ??????????????????????# #@############???????????? | | ??????????????????????# # p #???????????? | | ??????????????????????# # p !! #???????????? | | ??????????????????????# # !! """ #???????????? | | ??????????????????????# # ![ """ #???????????? | | ??????????????????????# # """ #???????????? | | ??????????????????????# # k #???????????? | | ??????????????????????# # #???????????? | | ??????????????????????# # """ " " #???????????? | | ??????????????????????# # """ "R" #???????????? | | ??????????????????????# # """g """ #???????????? | | ??????????????????????# # #???????????? | | ??????????????????????# # % ? #???????????? | | ??????????????????????# #######/###??#???????????? | | ??????????????#######/# ##### *=!#???????????????? | | ????????? #???????????????? | | ????????? #???????????????? | | ????????????################# +???????????????? | | ????????????????????????????# #???????????????? | | ????????????????????????????# #???????????????? | | ????????????????????????????# #???????????????? | | ????????????????????????????# #???????????????? | | ????????????????????????????#]! #???????????????? | | ????????????????????????????#]!!*#???????????????? | | ?????????????????##########?#!*!]#???????????????? | +----------------------------------------------------+ Best States ------------- Heat Dissipation 60 Energy Generation 18 Energy Capacity 850 Matter Stores 300 Matter Capacity 300 Sight Range 16 Terrain Scan Density 10 Armor Coverage 600 Evasion (%) 51 Recoil Reduction 6 Item Schematics ----------------- None Robot Schematics ------------------ None Fabricated ------------ Nothing Alien Tech Used ----------------- None Achievements -------------- Dangerous Findings Executioner Help From High Places Respectable Loadout Robot Respite The One Challenges ------------ None Game ------ Seed SubatomicSystemField Manual? 0 Play Time 01:14:17 Cumulative 8.7 hours Start 2021.02.11 @ 22:02:15 End 2021.02.11 @ 23:23:11 Sessions 1 Manual Loads 0 Difficulty Rogue Special Mode None Game No. 9 Rogue 9 Adventurer 0 Explorer 0 Win Type - Total 0 Types 0/0/0/0/0/0/0/0/0 Lore% 7 Gallery% 17 Achievement% 14 Wizard Run 0 Options --------- ASCII 0 Keyboard 0 Movement Numpad Keybinds 0 Fullscreen 1 Font 24/Terminus Map View 76x50 Tactical HUD 1 Map Filters NONE Filters NONE Steam 1 RUN: a8df8a16-a40b-47ac-bf79-0d5b1053e55c